Cogmind - Beta 13 @@@ ROGUE MODE // 2024.03.09 @ 17:48:16 Player: maniacgrid Result: Destroyed by G-47 Trooper with Particle Gun Performance ------------- Evolutions (3) 1500 Regions Visited (4) 800 Robots Destroyed (20) 100 Value Destroyed (651) 651 Prototype IDs (2) 40 Alien Tech Used (0) 0 Bonus (0) 0 TOTAL SCORE: 3091 Bonus ------- None Cogmind --------- Core Integrity 0/700 Matter 248/300 Energy 100/100 System Corruption 0% Temperature Cool (27) Movement Core (50) Location -7/Factory Parts ------- > --- POWER (2) -------- (None) > --- PROPULSION (4) --- (None) > --- UTILITY (3) ------ Heat Sink > --- WEAPON (4) ------- (None) > --- INVENTORY (5) ---- Aluminum Leg Medium Storage Unit Medium Storage Unit Large Storage Unit Welding Torch Peak State ------------ > --- POWER ------------ Nuclear Core > --- PROPULSION ------- Improved Aluminum Leg Improved Aluminum Leg Improved Aluminum Leg Improved Aluminum Leg > --- UTILITY ---------- Large Storage Unit Light Armor Plating Reactive Plating > --- WEAPON ----------- Medium Laser Beam Rifle Subdweller Machine Gun Grenade Launcher > --- INVENTORY -------- Aluminum Leg Heat Sink Medium Storage Unit Medium Storage Unit Large Storage Unit Reactive Plating Medium Laser Medium Laser Beam Rifle Welding Torch [Rating: 23] Favorites ----------- Power Ion Engine Engine Ion Engine Power Core Nuclear Core Propulsion Aluminum Leg Leg Aluminum Leg Utility Large Storage Unit Device Seismic Detector Storage Large Storage Unit Protection Scrap Shield Weapon Medium Laser Energy Gun Medium Laser Ballistic Gun Subdweller Machine Gun Launcher Grenade Launcher Build | -11 -10 -10 -8 -7 ------- Run | Yrd Mat Sub Mat Fac Slots Evolved 6 | . . . 4 2 Power 1 | . . . 1 . Propulsion 2 | . . . 2 . Utility 1 | . . . 1 . Weapon 2 | . . . . 2 Parts Attached 38 | 5 9 3 12 9 Power 4 | 1 1 . 2 . Engine 2 | 1 1 . . . Core 2 | . . . 2 . Reactor . | . . . . . Propulsion 8 | 2 2 . 2 2 Treads . | . . . . . Leg 8 | 2 2 . 2 2 Wheel . | . . . . . Hover . | . . . . . Flight . | . . . . . Utility 12 | . 4 2 4 2 Device 6 | . 3 1 1 1 Storage 2 | . 1 1 . . Processor . | . . . . . Hackware . | . . . . . Protection 4 | . . . 3 1 Artifact . | . . . . . Weapon 14 | 2 2 1 4 5 Energy Gun 10 | 2 2 . 2 4 Energy Cannon . | . . . . . Ballistic Gun 2 | . . 1 . 1 Ballistic Cannon . | . . . . . Launcher 2 | . . . 2 . Special Weapon . | . . . . . Impact Weapon . | . . . . . Slashing Weapon . | . . . . . Piercing Weapon . | . . . . . Special Melee Weapon . | . . . . . Unidentified Prototypes . | . . . . . Parts Lost 20 | . 1 . 2 17 Power 3 | . 1 . 1 1 Propulsion 5 | . . . . 5 Utility 5 | . . . 1 4 Weapon 7 | . . . . 7 Highest Loss Streak 17 | . 1 . 2 17 To Critical Strikes . | . . . . . Average Slot Usage (%) 89 | . 93 100 85 67 Engine 8 | . 13 14 3 . Core 4 | . . . 10 4 Leg 30 | . 28 28 36 18 Device 8 | . 16 13 . 1 Storage 7 | . 5 14 9 7 Protection 4 | . . . 8 10 Energy Gun 18 | . 27 21 9 13 Ballistic Gun 4 | . . 6 8 4 Naked Turns . | . . . . . Heaviest Build 56 | 6 30 39 56 52 Greatest Support 52 | 20 26 26 46 52 Greatest Overweight (x) 7 | . 1 1 1 7 Average Overweight (x) . | . . 1 . 1 Largest Inventory Capacity 15 | 5 15 15 15 15 Average Capacity 11 | 5 8 15 15 14 Most Carried 15 | 2 15 15 15 12 Average Carried 9 | . 7 14 12 9 Final Capacity 15 | 5 15 15 15 5 Final Carried 15 | . 15 15 13 5 Class Distribution -------------------- 82% | Mutant 12% | Scavenger-Mutant 3% | Scavenger-Tank Dominant Class ---------------- Mutant | -10/Materials Mutant | -10/Subcaves Mutant | -8/Materials Mutant | -7/Factory Resources | -11 -10 -10 -8 -7 ----------- Run | Yrd Mat Sub Mat Fac Matter Collected 582 | 250 50 70 152 60 Remotely . | . . . . . Salvage Created 739 | 45 170 . 308 216 Parts 24 | 1 8 . 7 8 Haulers Intercepted 1 | . . . . 1 Recyclers Shooed . | . . . . . Parts Field Recycled . | . . . . . Retrieved Matter . | . . . . . Parts Self-Destructed 1 | . . 1 . . Prevented . | . . . . . Kills | -11 -10 -10 -8 -7 ------- Run | Yrd Mat Sub Mat Fac Combat Hostiles Destroyed 16 | 1 6 . 5 4 Melee 1 | . . . . 1 Guns 13 | 1 6 . 4 2 AOE 2 | . . . 1 1 Classes Destroyed 8 | 1 1 . 4 2 Hauler 1 | . . . . 1 Recycler 2 | . . . 2 . Operator 1 | . . . 1 . Swarmer 3 | . 3 . . . Grunt 10 | 1 3 . 3 3 Duelist 1 | . . . . 1 Sentry 1 | . . . 1 . Hunter 1 | . . . 1 . Best Kill Streak 5 | 1 2 . 5 4 Combat Bots Only 4 | 1 2 . 4 3 Max Kills in Single Turn 2 | 1 1 . 2 1 Gunslinging . | . . . . . Exploded 1 | . . . 1 1 Melee 1 | . . . . 1 Uniques/NPCs Destroyed . | . . . . . Combat | -11 -10 -10 -8 -7 -------- Run | Yrd Mat Sub Mat Fac Hostile Shots Fired 324 | 7 40 4 48 225 Missed 78 | 3 11 1 11 52 Damage Taken 2982 | 43 247 72 693 1927 Core 902 | 11 43 23 119 706 Absorbed by Shields . | . . . . . Ignored by Resistances 63 | . . . . 63 Core Remaining (%) 80 | 95 . 69 78 . Volleys Fired 65 | 6 23 1 22 13 Largest 4 | 2 2 2 2 4 Hottest 166 | 90 90 100 112 166 Shots Fired 137 | 12 46 2 41 36 Gun 124 | 12 46 2 36 28 Cannon . | . . . . . Launcher 13 | . . . 5 8 Special . | . . . . . Kinetic 23 | . . . 17 6 Thermal 101 | 12 46 2 19 22 Explosive 13 | . . . 5 8 Electromagnetic . | . . . . . Robot Hit Streak 10 | 7 7 . 10 10 Robot Miss Streak 3 | 2 3 . 3 1 Penetration Max . | . . . . . Secondary Targets 3 | . 1 . 1 1 Max Gunslinging Chain 1 | . 1 . 1 1 Shots Hit Robots 76 | 9 27 . 28 12 Core Hits 43 | 2 10 . 15 16 Critical Kills 1 | . . . 1 . Critical Parts Destroyed . | . . . . . Critical Strikes 4 | 1 . . 1 2 Burn 3 | 1 . . . 2 Destroy 1 | . . . 1 . Melee Attacks . | . . . . . Impact . | . . . . . Slashing . | . . . . . Piercing . | . . . . . Sneak Attacks . | . . . . . Combat Hostiles . | . . . . . Follow-up Attacks . | . . . . . Damage Inflicted 1542 | 104 311 26 695 406 Guns 1028 | 104 305 26 393 200 Cannons . | . . . . . Explosions 493 | . . . 302 191 Melee . | . . . . . Ramming 21 | . 6 . . 15 Kinetic 271 | . . . 247 24 Thermal 757 | 104 305 26 146 176 Explosive 493 | . . . 302 191 Electromagnetic . | . . . . . Impact . | . . . . . Slashing . | . . . . . Piercing . | . . . . . Highest Corruption . | . . . . . Average Corruption . | . . . . . Corruption Purged . | . . . . . Corruption Blocked . | . . . . . Overload Shots . | . . . . . Overflow Damage 8 | . . . 7 1 Projectiles . | . . . . . Explosions 8 | . . . 7 1 Melee . | . . . . . Knockbacks 1 | . . . . 1 Impact 1 | . . . . 1 Kinetic . | . . . . . Secondary . | . . . . . Self-Inflicted Damage 181 | . . . 126 55 Shots 7 | . . . 5 2 Rammed 9 | . . . . 9 Targets Rammed 10 | . 1 . . 9 Kicked 1 | . 1 . . . Crushed . | . . . . . Highest Temperature 680 | 204 176 . 261 680 Average Temperature 162 | 110 64 . 151 302 Received Heat Transfer 1071 | 24 48 . 198 801 Effects 26 | . . . 4 22 Shutdowns 1 | . . . . 1 Energy Bleed 4 | . . . . 4 Interference 6 | . . . 4 2 Short Circuit 2 | . . . . 2 Damage (minor) 1 | . . . . 1 Damage (major) 11 | . . . . 11 Damage (core) 1 | . . . . 1 Siege Activations . | . . . . . Robots Corrupted . | . . . . . Combat Hostiles . | . . . . . Parts Fried . | . . . . . Impact Corruptions . | . . . . . Robots Melted . | . . . . . Combat Hostiles . | . . . . . Parts Melted 2 | . . . . 2 Heat Transferred 2299 | 359 830 74 407 629 Parts Sabotaged . | . . . . . Parts Stolen . | . . . . . Parts Stripped . | . . . . . Power Chain Reactions . | . . . . . Alert | -11 -10 -10 -8 -7 ------- Run | Yrd Mat Sub Mat Fac Peak Influence 150 | 20 138 . 150 150 Initial 67 | . 13 . 8 67 Average 39 | 2 40 . 34 79 Maximum Alert Level . | . . . . . Low Security (%) 100 | 100 100 . 100 100 Level 1 . | . . . . . Level 2 . | . . . . . Level 3 . | . . . . . Level 4 . | . . . . . Level 5 . | . . . . . High Security . | . . . . . Max Security . | . . . . . Squads Dispatched 3 | . . . 1 2 Investigation . | . . . . . Extermination . | . . . . . Reinforcement 3 | . . . 1 2 Assault . | . . . . . Garrison . | . . . . . Intercept . | . . . . . Searches Triggered . | . . . . . Construction Impeded . | . . . . . Haulers Reinforced 1 | . . . . 1 Active Scanning Responses . | . . . . . Cargo Convoy Interrupts . | . . . . . Stealth | -11 -10 -10 -8 -7 --------- Run | Yrd Mat Sub Mat Fac Distress Signals 1 | . . . 1 . Communications Jammed . | . . . . . Distress Signals . | . . . . . Times Spotted 24 | 1 7 2 7 7 Peak Tracking Total 6 | 1 3 1 3 6 Tactical Retreats . | . . . . . Traps | -11 -10 -10 -8 -7 ------- Run | Yrd Mat Sub Mat Fac Traps Triggered . | . . . . . Indirectly . | . . . . . Trap Hack Attempts . | . . . . . Triggered . | . . . . . Disarmed . | . . . . . Reprogrammed . | . . . . . Reused . | . . . . . Traps Extracted . | . . . . . Installed . | . . . . . Triggered . | . . . . . Machines | -11 -10 -10 -8 -7 ---------- Run | Yrd Mat Sub Mat Fac Machines Disabled 1 | . . . 1 . Max in Single Turn 1 | . . . 1 . Machines Repaired . | . . . . . Machines Dismantled . | . . . . . Machines Sabotaged . | . . . . . Overloaded Fab Kills . | . . . . . Hacking | -11 -10 -10 -8 -7 --------- Run | Yrd Mat Sub Mat Fac Machines Accessed 3 | . . . 3 . Terminals 2 | . . . 2 . Fabricators . | . . . . . Repair Stations . | . . . . . Recycling Units . | . . . . . Scanalyzers 1 | . . . 1 . Garrison Access . | . . . . . Total Hacks 5 | . . . 5 . Successful 5 | . . . 5 . Failed . | . . . . . Catastrophic . | . . . . . Database Lockouts . | . . . . . Manual . | . . . . . Terminals 3 | . . . 3 . Fabricators . | . . . . . Repair Stations . | . . . . . Recycling Units . | . . . . . Scanalyzers 2 | . . . 2 . Garrison Access . | . . . . . Terminal Hacks 3 | . . . 3 . Record 1 | . . . 1 . Prototype ID Bank 1 | . . . 1 . Emergency Access Points 1 | . . . 1 . Fabricator Hacks . | . . . . . Repair Station Hacks . | . . . . . Recycling Unit Hacks . | . . . . . Scanalyzer 2 | . . . 2 . Insert Component 1 | . . . 1 . Analyze 1 | . . . 1 . Garrison Access Hacks . | . . . . . Unauthorized Hacks . | . . . . . Terminals . | . . . . . Fabricators . | . . . . . Repair Stations . | . . . . . Recycling Units . | . . . . . Scanalyzers . | . . . . . Garrison Access . | . . . . . Data Cores Recovered 1 | . . . 1 . Used . | . . . . . Hacking Detections 2 | . . . 2 . Full Trace Events . | . . . . . Feedback Events . | . . . . . Feedback Blocked . | . . . . . Robot Schematics Acquired . | . . . . . Robots Built . | . . . . . Authchips . | . . . . . Time . | . . . . . Total Robot Build Rating . | . . . . . Part Schematics Acquired 1 | . . . 1 . Parts Built . | . . . . . Authchips . | . . . . . Time . | . . . . . Total Part Build Rating . | . . . . . Parts Repaired . | . . . . . Time . | . . . . . Parts Recycled . | . . . . . Recycled Matter . | . . . . . Retrieved Matter . | . . . . . Retrieved Components . | . . . . . Parts Scanalyzed 1 | . . . 1 . Part Schematics Acquired 1 | . . . 1 . Parts Damaged 1 | . . . 1 . Bothacking | -11 -10 -10 -8 -7 ------------ Run | Yrd Mat Sub Mat Fac Used RIF Installer . | . . . . . Robots Hacked . | . . . . . Non-combat . | . . . . . Combat . | . . . . . Robot Hacks Applied . | . . . . . Relay Couplers Released . | . . . . . Fabnet Peak Effective % . | . . . . . Robots Rewired . | . . . . . Allies Hacked . | . . . . . Hacks Repelled . | . . . . . Allies | -11 -10 -10 -8 -7 -------- Run | Yrd Mat Sub Mat Fac Total Allies . | . . . . . Largest Group . | . . . . . Highest-Rated Group . | . . . . . Highest-Rated Ally . | . . . . . Total Orders . | . . . . . Ally Attacks . | . . . . . Total Damage . | . . . . . Kills . | . . . . . Allies Corrupted . | . . . . . Allies Melted . | . . . . . Intel | -11 -10 -10 -8 -7 ------- Run | Yrd Mat Sub Mat Fac Robot Analysis Total . | . . . . . Derelict Logs Recovered . | . . . . . Drone Launches . | . . . . . Drone Recoveries . | . . . . . Exploration | -11 -10 -10 -8 -7 ------------- Run | Yrd Mat Sub Mat Fac Turns Passed 1718 | 94 727 150 624 123 Spaces Moved 870 | 70 413 74 285 28 Core 31 | 25 . . . 6 Treads . | . . . . . Legs 839 | 45 413 74 285 22 Wheels . | . . . . . Hover . | . . . . . Flight . | . . . . . Fastest Speed 50 | 50 120 190 120 50 Average Speed 157 | 95 142 190 184 170 Slowest Speed 400 | 120 190 190 190 400 Overloaded Moves . | . . . . . Propulsion Burnouts . | . . . . . Robots Hopped . | . . . . . Cave-ins Triggered . | . . . . . Exploration Rate (%) 12 | 7 28 7 17 1 Regions Visited 4 Branch Regions 1 Pre-discovered Areas . | . . . . . Known Exits Taken . | . . . . . Unknown Exits Taken 4 | 1 1 1 1 . Scrap Searched . | . . . . . Spaces Dug . | . . . . . Terrain Destroyed 48 | . . . 16 32 Melee . | . . . . . Projectile 3 | . . . 2 1 AOE 45 | . . . 14 31 Terrain Rammed . | . . . . . Walls Destroyed . | . . . . . Machines Disabled . | . . . . . Actions | -11 -10 -10 -8 -7 --------- Run | Yrd Mat Sub Mat Fac Total 1079 | 85 510 82 343 59 Wait 38 | . 27 . 11 . Move 866 | 69 412 73 284 28 Hop . | . . . . . Pick Up 44 | 5 28 2 9 . Fast Attach . | . . . . . Attach 26 | 5 7 . 6 8 Detach . | . . . . . Swap 12 | . 2 3 6 1 Drop 18 | . 10 3 5 . Fire 65 | 6 23 1 22 13 Melee . | . . . . . Ram 9 | . . . . 9 Kick 1 | . 1 . . . Crush . | . . . . . Escape Stasis . | . . . . . Rewire . | . . . . . Trap . | . . . . . Miscellaneous . | . . . . . Route ------- -11/Scrapyard -10/Materials -10/Subcaves -8/Materials -7/Factory History --------- Turn | Location | Event 2 | -11/Scrapyard | Met Revision 17 60 | -11/Scrapyard | Discovered new exit (range 8) 95 | -11/Scrapyard | Entered Materials 303 | -10/Materials | Build established: Mutant 810 | -10/Materials | Discovered new exit (range 6) 822 | -10/Materials | Entered Subcaves 928 | -10/Subcaves | Discovered new exit (range 12) 971 | -10/Subcaves | Shifting Twisted Machinery released Sub. Optics 972 | -10/Subcaves | Entered Materials 972 | -8/Materials | Evolved 4 slots: Power x1, Propulsion x2, Utility x1 1532 | -8/Materials | Discovered new exit (range 4) 1596 | -8/Materials | Entered Factory 1596 | -7/Factory | Evolved 2 slots: Weapon x2 1689 | -7/Factory | Core integrity fell below 50% 1710 | -7/Factory | Core integrity fell below 20% 1719 | -7/Factory | Destroyed by G-47 Trooper with Particle Gun Last Messages --------------- 01704_ G-47 Trooper overheating. 01705_ Reactive Plating destroyed. 01708_ Med. Laser destroyed. 01708_ Slammed into G-47 Trooper. 01709_ R-06 Scavenger collects Imp. Deuterium Engine. 01710_ Lrg. Storage Unit destroyed. 01712_ Slammed into G-47 Trooper. 01713_ R-06 Scavenger collects Particle Gun. 01714_ Beam Rifle destroyed. 01714_ Slammed into G-47 Trooper. 01714_ Aluminum Leg melted. 01714_ G-47 Trooper destroyed. [Achievement: Fist Fight] 01715_ Acquired 60 matter. 01716_ R-06 Scavenger collects Carbon-fiber Leg. 01718_ Slammed into G-47 Trooper. 01718_ G-47 Trooper knocked back. 01719_ Slammed into G-47 Trooper. 01719_ Critical hit (Burn: +37). Map ----- +----------------------------------------------------+ | ?????????????????????????????????????????????????? | | ?????????????????????????????????????????????????? | | ?????????????????????????????????????????????????? | | ?????????????????????????????????????????????????? | | ?????????????????????????????????????????????????? | | ?????????????????????????????????????????????????? | | ?????????????????????????????????????????????????? | | ?????????????????????????????????????????????????? | | ?????????????????????????????????????????????????? | | ?????????????????????????????????????????????????? | | ?????????????????????????????????????????????????? | | ?????????????????????????????????????????????????? | | ?????????????????????????? ??????????????????????? | | ?????????????????????????? ??????????????????????? | | ??????????????????????????*??????????????????????? | | ?????????????????????????? ??????????????????????? | | ?????????????????????????# ??????????????????????? | | ?????????????????????????# ??????????????????????? | | ?????????????????????????# ??????????????????????? | | ?????????????????????????# #?????????????????????? | | ?????????????????????????# #???#######???????????? | | ????????????????########## #???# !!! ??????????? | | ????????????????# !+ #???# !! ??????????? | | ????????????????# * # #???# !! ??????????? | | ????????????????# # ##### ??????????? | | ????????????????# @g # """ ""??????????? | | ????????????????# # """ """?????????? | | ????????????????# r # """ """ #???????? | | ????????????????# Y #???????? | | ????????????????# * #######????????? | | ????????????????# =%= #??????????? | | ????????????????##### [ #??????????? | | ??????????????????# % # #????????? | | ??????????????????# #?????????? | | ??????????????????# #????????? | | ??????????????????#t #????????? | | ????????????????? #????????? | | ?????????????????#### ####### ## #????????? | | ???????????????????? T??????####??#?????????? | | ???????????????????""" ??????????????????????? | | ????????????????????"" ??????????????????????? | | ?????????????????????? ??????????????????????? | | ?????????????????????? !???????????????????????? | | ?????????????????????????????????????????????????? | | ?????????????????????????????????????????????????? | | ?????????????????????????????????????????????????? | | ?????????????????????????????????????????????????? | | ?????????????????????????????????????????????????? | | ?????????????????????????????????????????????????? | | ?????????????????????????????????????????????????? | +----------------------------------------------------+ Best States ------------- Heat Dissipation 44 Energy Generation 23 Energy Capacity 300 Matter Stores 300 Matter Capacity 300 Sight Range 16 Terrain Scan Density 10 Armor Coverage 800 Resistance: KI 20 Evasion (%) 55 Item Schematics ----------------- Beam Rifle | -8/Materials | Scanalyzed Robot Schematics ------------------ None Fabricated ------------ Nothing Alien Tech Used ----------------- None Achievements -------------- Crack Shot Fist Fight Made in Tau Ceti IV Challenges ------------ None Game ------ Seed FissionContainmentSuite Manual? 0 Play Time 00:35:18 Cumulative 1.4 hours Start 2024.03.02 @ 17:46:01 End 2024.03.09 @ 17:48:16 Sessions 11 Manual Loads 0 Difficulty Rogue Special Mode None Game No. 3 Rogue 3 Adventurer 0 Explorer 0 Win Type - Total 0 Types 0/0/0/0/0/0/0/0/0 Lore% 0 Gallery% 2 Achievement% 3 Wizard Run 0 Options --------- Layout 1 ASCII 1 Keyboard 0 Movement Arrows Keybinds 0 Fullscreen 1 Font 16/SmallcapsGlow Map View 25x20 Zoom Use 91% Tactical HUD 1 Map Filters NONE Filters NONE Steam 1 RUN: 44e94c61-3cee-43db-bb03-d2dfb91f51be